Cogmind - Beta 14 @@@ ROGUE MODE // 2025.03.17 @ 16:33:01 Player: Yura Nebov Result: Destroyed by G-50 Soldier with Heavy Laser Performance ------------- Evolutions (5) 2500 Regions Visited (17) 3400 Robots Destroyed (164) 820 Value Destroyed (4394) 4394 Prototype IDs (23) 460 Alien Tech Used (0) 0 Bonus (383) 383 TOTAL SCORE: 11957 Bonus ------- High Alert Combat Kills 140 Follower Combat Kills 72 Met Data Miner 300 Friendly Fire -129 Cogmind --------- Core Integrity 0/1000 Matter 30/300 Energy 99/100 System Corruption 2% Temperature Cool (9) Movement Core (50) Location -5/Factory Parts ------- > --- POWER (2) -------- (None) > --- PROPULSION (4) --- (None) > --- UTILITY (8) ------ (None) > --- WEAPON (3) ------- (None) > --- INVENTORY (5) ---- Improved VTOL Module Improved Reaction Control System Mass Driver Scatter Rocket Array Power Sword Peak State ------------ > --- POWER ------------ Micro Nuclear Core > --- PROPULSION ------- Improved VTOL Module Improved VTOL Module Cooled Cesium-ion Thruster Biomechanical Wings > --- UTILITY ---------- Advanced Sensor Array Improved Signal Interpreter Hacking Suite Hacking Suite Advanced Hacking Suite System Shield System Shield > --- WEAPON ----------- Phase Cannon Remote Datajack Power Sword > --- INVENTORY -------- Improved Flight Unit Enhanced Optical Array Improved Light Armor Plating Hacking Suite Scatter Rocket Array [Rating: 66] Favorites ----------- Power Micro Nuclear Core Engine Ion Engine Power Core Micro Nuclear Core Propulsion Improved VTOL Module Treads Improved Treads Wheel Wheel Flight Unit Improved VTOL Module Utility Hacking Suite Device Improved Heat Sink Storage Large Storage Unit Processor Improved Signal Interpreter Hackware Hacking Suite Protection Improved Light Armor Plating Weapon Particle Gun Energy Gun Particle Gun Energy Cannon Beam Cannon Ballistic Gun Shotgun Ballistic Cannon Battle Cannon Launcher Mini Grenade Launcher Special Weapon Remote Datajack Slashing Weapon Katana Special Melee Weapon Datajack Build | -11 -10 -10 -9 -9 -9 -8 -8 -7 -7 -7 -7 -6 -6 -6 -6 -6 -5 ------- Run | Yrd Mat Min Mat Min Exi Min Mat Fac Low Low Dat Pro Fac Ext Cet Arc Fac Slots Evolved 10 | . . . 2 . . . 2 2 . . . . 2 . . . 2 Power 1 | . . . . . . . . . . . . . . . . . 1 Propulsion 2 | . . . . . . . 1 1 . . . . . . . . . Utility 6 | . . . 2 . . . 1 1 . . . . 1 . . . 1 Weapon 1 | . . . . . . . . . . . . . 1 . . . . Parts Attached 334 | 7 38 18 44 13 3 13 102 29 3 7 . 4 23 19 6 . 5 Power 20 | 1 4 2 2 . . 1 4 2 . . . . 1 3 . . . Engine 9 | 1 4 2 1 . . . 1 . . . . . . . . . . Core 11 | . . . 1 . . 1 3 2 . . . . 1 3 . . . Reactor . | . . . . . . . . . . . . . . . . . . Propulsion 121 | 2 21 4 13 6 . 7 55 10 . . . . 1 1 1 . . Treads 36 | . . . 4 2 . 2 28 . . . . . . . . . . Leg . | . . . . . . . . . . . . . . . . . . Wheel 72 | 2 21 4 9 4 . 5 27 . . . . . . . . . . Hover . | . . . . . . . . . . . . . . . . . . Flight 13 | . . . . . . . . 10 . . . . 1 1 1 . . Utility 128 | 2 3 9 20 5 3 5 30 12 2 6 . 4 13 8 3 . 3 Device 74 | 1 3 9 12 3 1 4 17 5 1 3 . 2 8 3 1 . 1 Storage 6 | 1 . . 1 1 2 . 1 . . . . . . . . . . Processor 4 | . . . 1 . . . 2 . . . . . . 1 . . . Hackware 9 | . . . . . . . 1 5 . . . . 2 . . . 1 Protection 35 | . . . 6 1 . 1 9 2 1 3 . 2 3 4 2 . 1 Artifact . | . . . . . . . . . . . . . . . . . . Weapon 65 | 2 10 3 9 2 . . 13 5 1 1 . . 8 7 2 . 2 Energy Gun 36 | 2 8 2 9 1 . . 11 . . . . . 1 . . . 2 Energy Cannon 3 | . 1 . . . . . 1 . . . . . . 1 . . . Ballistic Gun 2 | . 1 1 . . . . . . . . . . . . . . . Ballistic Cannon 2 | . . . . . . . . . . . . . . 2 . . . Launcher 8 | . . . . . . . 1 1 1 . . . 1 3 1 . . Special Weapon 3 | . . . . 1 . . . . . . . . 1 1 . . . Impact Weapon . | . . . . . . . . . . . . . . . . . . Slashing Weapon 7 | . . . . . . . . 2 . 1 . . 3 . 1 . . Piercing Weapon . | . . . . . . . . . . . . . . . . . . Special Melee Weapon 4 | . . . . . . . . 2 . . . . 2 . . . . Unidentified Prototypes 6 | . . 1 . . . . 2 1 . . . . 1 . 1 . . Parts Lost 36 | . 2 3 2 . . 1 11 2 . . . . 2 3 4 1 5 Power 5 | . . 1 1 . . . 3 . . . . . . . . . . Propulsion 11 | . 2 . 1 . . . 3 . . . . . . 1 2 . 2 Utility 12 | . . 1 . . . 1 3 1 . . . . . 1 1 1 3 Weapon 8 | . . 1 . . . . 2 1 . . . . 2 1 1 . . Highest Loss Streak 8 | . 2 3 1 . . 1 8 2 . . . . 2 2 4 1 5 To Critical Strikes 1 | . . . . . . . . . . . . . . . 1 . . Average Slot Usage (%) 97 | . 98 98 99 100 100 99 95 99 100 100 100 100 99 96 83 80 53 Engine 4 | . 13 13 8 11 11 1 3 5 . . . . . . . . . Core 4 | . . . 2 . . 9 5 1 7 7 7 7 6 6 6 6 3 Treads 2 | . . . 5 . . . 10 . . . . . . . . . . Wheel 11 | . 27 28 16 21 22 21 16 . . . . . . . . . . Flight 12 | . . . . . . . . 29 30 30 30 30 25 25 20 20 12 Device 11 | . 14 13 15 21 22 21 15 6 7 6 7 6 5 3 4 6 3 Storage 5 | . 14 14 11 11 11 11 9 . . . . . . . . . . Processor 8 | . . . 11 11 11 11 13 7 7 7 7 7 6 5 6 6 3 Hackware 13 | . . . . . . . 1 27 30 30 30 30 33 33 33 33 24 Protection 1 | . . . 6 . . . 1 1 . . . . . 3 2 . . Energy Gun 9 | . 13 4 19 22 22 22 16 . . . . . . . . . 1 Energy Cannon 1 | . 9 11 . . . . 1 . . . . . . . . . . Ballistic Gun 1 | . 3 12 2 . . . . . . . . . . . . . . Launcher 1 | . . . . . . . . . 3 7 7 7 6 . . . . Slashing Weapon 2 | . . . . . . . . 6 7 7 7 7 5 6 5 6 1 Peak Build Rating 66 | 9 12 17 19 18 18 21 34 45 43 44 44 44 61 66 64 51 60 Average Rating 32 | 6 8 11 15 17 17 20 28 42 42 43 44 44 54 60 53 49 39 On Entrance 32 | . 9 11 9 17 18 18 21 34 42 43 44 44 44 61 64 51 48 Naked Turns 19 | . . . . . . . . . . . . . . . . . 19 Heaviest Build 67 | 14 17 17 27 37 33 37 67 16 12 12 10 12 16 21 22 9 10 Greatest Support 69 | 20 24 22 40 40 20 40 69 20 20 20 20 20 21 22 22 16 16 Greatest Overweight (x) 5 | 1 4 . 1 1 1 1 5 . . . . . . . . . . Average Overweight (x) . | . . . . . 1 . 1 . . . . . . . . . . Largest Inventory Capacity 20 | 8 8 8 10 15 15 15 20 20 5 5 5 5 5 5 5 5 5 Average Capacity 10 | 7 8 8 9 14 15 15 17 5 5 5 5 5 5 5 5 5 5 Most Carried 20 | 6 8 8 10 15 15 15 20 19 5 5 5 5 5 5 5 5 5 Average Carried 9 | 2 7 7 8 13 15 14 16 4 5 5 5 5 4 4 4 5 4 Final Capacity 20 | 8 8 8 10 15 15 15 20 5 5 5 5 5 5 5 5 5 5 Final Carried 20 | 6 8 6 10 15 15 15 20 5 5 5 5 5 5 5 5 5 5 Class Distribution -------------------- 43% | Hacker-Sprinter 43% | Scavenger-Mutant 6% | Mutant 4% | Scavenger-Skirmisher Dominant Class ---------------- Mutant | -10/Materials Scavenger-Mutant | -10/Mines Scavenger-Mutant | -9/Materials Scavenger-Mutant | -9/Mines Scavenger-Mutant | -9/Exiles Scavenger-Mutant | -8/Mines Scavenger-Mutant | -8/Materials Hacker-Sprinter | -7/Factory Hacker-Sprinter | -7/Lower Caves Hacker-Sprinter | -7/Lower Caves Hacker-Sprinter | -7/Data Miner Hacker-Sprinter | -6/Proximity Caves Hacker-Sprinter | -6/Factory Hacker-Sprinter | -6/Extension Hacker-Sprinter | -6/Cetus Hacker-Sprinter | -6/Archives Hacker-Sprinter | -5/Factory Resources | -11 -10 -10 -9 -9 -9 -8 -8 -7 -7 -7 -7 -6 -6 -6 -6 -6 -5 ----------- Run | Yrd Mat Min Mat Min Exi Min Mat Fac Low Low Dat Pro Fac Ext Cet Arc Fac Matter Collected 4060 | 270 682 294 525 130 . 140 965 212 105 103 . 100 190 293 3 . 48 Remotely . | . . . . . . . . . . . . . . . . . . Salvage Created 6024 | 160 615 129 836 354 . 372 2192 197 77 192 . 44 328 480 . . 48 Parts 323 | 11 45 13 33 13 . 25 113 14 6 5 . 6 17 20 . . 2 Haulers Intercepted 11 | . 2 . . . . . 6 . . . . . 1 2 . . . Recyclers Shooed 10 | . . 1 1 2 . 1 4 1 . . . . . . . . . Parts Field Recycled . | . . . . . . . . . . . . . . . . . . Retrieved Matter . | . . . . . . . . . . . . . . . . . . Parts Self-Destructed 12 | . . . . . . . . . 6 1 . 5 . . . . . Prevented . | . . . . . . . . . . . . . . . . . . Kills | -11 -10 -10 -9 -9 -9 -8 -8 -7 -7 -7 -7 -6 -6 -6 -6 -6 -5 ------- Run | Yrd Mat Min Mat Min Exi Min Mat Fac Low Low Dat Pro Fac Ext Cet Arc Fac Combat Hostiles Destroyed 93 | . 8 7 13 2 . 2 38 3 1 6 . 3 4 2 4 . . Melee 14 | . . . . . . . . . 1 6 . 1 4 . 2 . . Guns 55 | . 5 4 13 2 . 1 30 . . . . . . . . . . Cannons 13 | . 3 3 . . . . 5 . . . . . . 2 . . . AOE 7 | . . . . . . . . 3 . . . 2 . . 2 . . Classes Destroyed 16 | 2 5 2 1 . . 1 3 . 1 . . . 1 . . . . Worker 13 | . 5 . . 1 . 1 2 1 . . . . . 2 . . 1 Builder 10 | . 2 . . . . 3 1 2 . . . . . 1 . . 1 Tunneler 11 | 4 . . . 2 . 3 2 . . . . . . . . . . Hauler 11 | . 2 . . . . . 6 . . . . . 1 2 . . . Recycler 16 | 1 . . 3 3 . 3 2 2 . . . . 1 1 . . . Minesweeper 1 | . . . . . . . . . 1 . . . . . . . . Mechanic 2 | . . . . . . . 2 . . . . . . . . . . Operator 2 | . . . . . . . 2 . . . . . . . . . . Watcher 6 | . 3 . . . . . 2 . . . . . . 1 . . . Swarmer 21 | . . 3 . . . . 8 3 . . . 3 3 1 . . . Grunt 47 | . 8 2 8 2 . 1 22 . 1 2 . . . 1 . . . Sentry 11 | . . . 5 . . . 6 . . . . . . . . . . Specialist 2 | . . . . . . . 2 . . . . . . . . . . Hunter 1 | . . . . . . 1 . . . . . . . . . . . Programmer 1 | . . . . . . . . . . . . . 1 . . . . Cetus Guard 4 | . . . . . . . . . . . . . . . 4 . . Assembled 2 | . . 2 . . . . . . . . . . . . . . . Wasp 3 | . . . . . . . . . . 3 . . . . . . . Thug 1 | . . . . . . . . . . 1 . . . . . . . Guerrilla 1 | . . . . . . . . . . . . . . 1 . . . Best Kill Streak 7 | 5 3 2 3 2 . 2 7 5 2 4 . 3 4 3 4 . 1 Combat Bots Only 6 | . 2 2 3 2 . 1 6 3 1 4 . 3 3 1 4 . . Max Kills in Single Turn 2 | 1 2 1 1 1 . 1 2 2 1 1 . 1 1 1 2 . 1 Gunslinging 1 | . . . . . . . 1 . . . . . . . . . . Exploded 2 | . . . . . . . . 1 . . . 1 . . 2 . . Melee 1 | . . . . . . . . . 1 1 . 1 1 . 1 . . Uniques/NPCs Destroyed . | . . . . . . . . . . . . . . . . . . Combat | -11 -10 -10 -9 -9 -9 -8 -8 -7 -7 -7 -7 -6 -6 -6 -6 -6 -5 -------- Run | Yrd Mat Min Mat Min Exi Min Mat Fac Low Low Dat Pro Fac Ext Cet Arc Fac Hostile Shots Fired 607 | . 30 33 57 4 . 13 236 19 1 18 . 3 59 17 35 11 71 Missed 194 | . 7 6 18 . . 3 57 9 1 9 . 1 24 9 17 5 28 Damage Taken 6837 | . 321 477 498 46 . 159 2674 125 . 159 . 31 344 151 511 143 1198 Core 2106 | . 73 91 94 . . 36 417 47 . 71 . 17 103 . 132 25 1000 Absorbed by Shields 20 | . . . . . . . . . . . . . . 20 . . . Regen/Repaired (Parts) 469 | . . . . . . . 301 15 . . . . 131 . . . 22 Core Remaining (%) 62 | 100 . 34 . . . 67 24 . . . . 80 . . . 69 . Volleys Fired 391 | 10 53 26 41 31 1 33 162 4 . . . 6 1 15 4 . 4 Largest 2 | 2 2 2 2 2 2 2 2 1 . . . 1 1 1 1 . 1 Hottest 130 | 80 100 83 121 121 121 121 130 30 . . . 30 30 50 50 . 85 Shots Fired 744 | 20 105 52 82 61 2 66 322 4 . . . 6 1 15 4 . 4 Gun 610 | 20 59 40 82 60 2 66 277 . . . . . . . . . 4 Cannon 114 | . 46 12 . . . . 44 . . . . . . 11 1 . . Launcher 16 | . . . . . . . 1 4 . . . 6 1 1 3 . . Special 4 | . . . . 1 . . . . . . . . . 3 . . . Kinetic 68 | . 29 19 8 . . . . . . . . . . 11 1 . . Thermal 635 | 10 64 33 74 61 2 66 321 . . . . . . . . . 4 Explosive 15 | . . . . . . . . 4 . . . 6 1 1 3 . . Electromagnetic 23 | 10 12 . . . . . 1 . . . . . . . . . . Robot Hit Streak 18 | 11 7 6 10 7 . 13 18 . . . . 1 . 4 3 . 2 Robot Miss Streak 7 | 2 4 7 4 3 . 3 6 1 . . . . . 4 2 . 2 Penetration Max . | . . . . . . . . . . . . . . . . . . Secondary Targets 2 | . . . . . . . 2 . . . . . . . . . . Max Gunslinging Chain 1 | . . . . . . . 1 . . . . . . . . . . Shots Hit Robots 540 | 12 67 30 59 36 . 38 226 11 3 13 . 2 13 20 6 . 4 Core Hits 313 | 5 32 14 32 12 . 15 99 12 1 7 . 4 7 16 56 . 1 Critical Kills . | . . . . . . . . . . . . . . . . . . Critical Parts Destroyed 1 | . 1 . . . . . . . . . . . . . . . . Critical Strikes 21 | . 1 . 3 2 . 6 7 . . . . . . 1 1 . . Burn 18 | . . . 3 2 . 6 7 . . . . . . . . . . Destroy 1 | . 1 . . . . . . . . . . . . . . . . Sever 2 | . . . . . . . . . . . . . . 1 1 . . Melee Attacks 127 | . . . . . . . . 41 5 20 . 13 25 17 4 . 2 Impact . | . . . . . . . . . . . . . . . . . . Slashing 118 | . . . . . . . . 35 4 20 . 13 23 17 4 . 2 Piercing . | . . . . . . . . . . . . . . . . . . Sneak Attacks 22 | . . . . . . . . 10 2 3 . . 4 2 . . 1 Combat Hostiles 3 | . . . . . . . . . . 3 . . . . . . . Follow-up Attacks . | . . . . . . . . . . . . . . . . . . Damage Inflicted 11885 | 155 1090 440 749 545 . 604 3983 643 111 522 . 264 549 1004 1057 . 169 Guns 6293 | 135 632 281 749 545 . 604 3311 . . . . . . . . . 36 Cannons 1399 | . 437 159 . . . . 665 . . . . . . 138 . . . Explosions 1701 | 20 20 . . . . . . 230 . . . 228 41 273 889 . . Melee 2481 | . . . . . . . . 413 111 522 . 36 508 593 168 . 130 Ramming 11 | . 1 . . . . . 7 . . . . . . . . . 3 Kinetic 751 | . 342 184 87 . . . . . . . . . . 138 . . . Thermal 6786 | 85 622 256 662 545 . 604 3976 . . . . . . . . . 36 Explosive 1661 | . . . . . . . . 230 . . . 228 41 273 889 . . Electromagnetic 195 | 70 125 . . . . . . . . . . . . . . . . Impact . | . . . . . . . . . . . . . . . . . . Slashing 2481 | . . . . . . . . 413 111 522 . 36 508 593 168 . 130 Piercing . | . . . . . . . . . . . . . . . . . . Highest Corruption 15 | . 2 15 . . . . . . . . . . . . . . 2 Average Corruption 2 | . 2 2 . . . . . . . . . . . . . . 2 Corruption Purged . | . . . . . . . . . . . . . . . . . . Corruption Blocked . | . . . . . . . . . . . . . . . . . . Effects 11 | . 4 7 . . . . . . . . . . . . . . . Matter Fused 1 | . . 1 . . . . . . . . . . . . . . . Heat Flow Errors 3 | . 1 2 . . . . . . . . . . . . . . . Energy Discharges 2 | . 1 1 . . . . . . . . . . . . . . . Data Loss (minor) 5 | . 2 3 . . . . . . . . . . . . . . . Overload Shots . | . . . . . . . . . . . . . . . . . . Overflow Damage 244 | . . . . . . . 7 128 34 4 . 11 . . . . 60 Projectiles 7 | . . . . . . . 7 . . . . . . . . . . Explosions 27 | . . . . . . . . 16 . . . 11 . . . . . Melee 210 | . . . . . . . . 112 34 4 . . . . . . 60 Knockbacks . | . . . . . . . . . . . . . . . . . . Impact . | . . . . . . . . . . . . . . . . . . Kinetic . | . . . . . . . . . . . . . . . . . . Secondary . | . . . . . . . . . . . . . . . . . . Self-Inflicted Damage 1 | . . . . . . . . . . . . . . . . . 1 Shots . | . . . . . . . . . . . . . . . . . . Rammed 4 | . 1 . . . . . 2 . . . . . . . . . 1 Targets Rammed 4 | . 1 . . . . . 2 . . . . . . . . . 1 Kicked . | . . . . . . . . . . . . . . . . . . Crushed . | . . . . . . . . . . . . . . . . . . Highest Temperature 345 | 144 141 163 54 90 9 99 345 . . . . 4 6 5 6 . 20 Average Temperature 53 | 62 31 43 17 15 6 25 82 . . . . 3 3 3 4 . 10 Received Heat Transfer 2307 | . 189 87 264 24 . 27 1377 . . 27 . . 81 51 45 18 117 Siege Activations . | . . . . . . . . . . . . . . . . . . Robots Corrupted . | . . . . . . . . . . . . . . . . . . Combat Hostiles . | . . . . . . . . . . . . . . . . . . Parts Fried 2 | . 2 . . . . . . . . . . . . . . . . Impact Corruptions . | . . . . . . . . . . . . . . . . . . Robots Melted 4 | . . . . . . 1 3 . . . . . . . . . . Combat Hostiles 4 | . . . . . . 1 3 . . . . . . . . . . Parts Melted 31 | . . 1 3 1 . 7 19 . . . . . . . . . . Heat Transferred 16638 | 200 1350 558 1776 1480 . 1924 9250 . . . . . . . . . 100 Parts Sabotaged . | . . . . . . . . . . . . . . . . . . Parts Stolen . | . . . . . . . . . . . . . . . . . . Parts Stripped . | . . . . . . . . . . . . . . . . . . Power Chain Reactions 2 | 1 1 . . . . . . . . . . . . . . . . Alert | -11 -10 -10 -9 -9 -9 -8 -8 -7 -7 -7 -7 -6 -6 -6 -6 -6 -5 ------- Run | Yrd Mat Min Mat Min Exi Min Mat Fac Low Low Dat Pro Fac Ext Cet Arc Fac Peak Influence 626 | 25 246 210 385 184 . 121 626 311 . . . . 207 262 169 117 190 Initial 260 | . 16 95 15 103 . . . 260 . . . . 44 100 92 67 40 Average 211 | 9 131 109 208 85 . 55 411 215 . . . . 103 174 155 90 69 Maximum Alert Level 2 | . 1 1 1 . . . 2 1 . . . . 1 1 . . . Low Security (%) 60 | 100 75 98 30 100 . 100 18 49 . . . . 96 58 100 100 100 Level 1 23 | . 24 1 69 . . . 22 50 . . . . 3 41 . . . Level 2 16 | . . . . . . . 59 . . . . . . . . . . Level 3 . | . . . . . . . . . . . . . . . . . . Level 4 . | . . . . . . . . . . . . . . . . . . Level 5 . | . . . . . . . . . . . . . . . . . . High Security . | . . . . . . . . . . . . . . . . . . Max Security . | . . . . . . . . . . . . . . . . . . Squads Dispatched 28 | . 2 . 2 1 . . 6 4 . . . . 6 1 . . 6 Investigation 11 | . 1 . 2 . . . 2 3 . . . . 2 . . . 1 Extermination 3 | . . . . . . . . 1 . . . . 2 . . . . Reinforcement 14 | . 1 . . 1 . . 4 . . . . . 2 1 . . 5 Assault . | . . . . . . . . . . . . . . . . . . Garrison . | . . . . . . . . . . . . . . . . . . Intercept . | . . . . . . . . . . . . . . . . . . Searches Triggered . | . . . . . . . . . . . . . . . . . . Construction Impeded 4 | . . . . 1 . . 1 . . . . . 1 1 . . . Haulers Reinforced . | . . . . . . . . . . . . . . . . . . Active Scanning Responses . | . . . . . . . . . . . . . . . . . . Cargo Convoy Interrupts . | . . . . . . . . . . . . . . . . . . Stealth | -11 -10 -10 -9 -9 -9 -8 -8 -7 -7 -7 -7 -6 -6 -6 -6 -6 -5 --------- Run | Yrd Mat Min Mat Min Exi Min Mat Fac Low Low Dat Pro Fac Ext Cet Arc Fac Distress Signals 11 | . 1 . . . . . 3 . . . . . 1 3 2 . 1 Communications Jammed . | . . . . . . . . . . . . . . . . . . Distress Signals . | . . . . . . . . . . . . . . . . . . Times Spotted 193 | . 16 11 17 2 . 4 64 9 1 7 . 2 10 23 6 4 17 Peak Tracking Total 12 | . 3 3 3 2 . 3 7 4 . 4 . 2 5 5 5 4 12 Tactical Retreats 18 | . 1 1 1 . . . 3 2 . 1 . . 4 3 . . 2 Traps | -11 -10 -10 -9 -9 -9 -8 -8 -7 -7 -7 -7 -6 -6 -6 -6 -6 -5 ------- Run | Yrd Mat Min Mat Min Exi Min Mat Fac Low Low Dat Pro Fac Ext Cet Arc Fac Traps Triggered 14 | . 7 . 1 . . . 1 . . . . . . 4 . . 1 Indirectly . | . . . . . . . . . . . . . . . . . . Trap Hack Attempts 23 | . . . . . . . . 2 . . . . 21 . . . . Triggered . | . . . . . . . . . . . . . . . . . . Disarmed . | . . . . . . . . . . . . . . . . . . Reprogrammed 7 | . . . . . . . . 2 . . . . 5 . . . . Reused 2 | . . . . . . . . 1 . . . . 1 . . . . Traps Extracted . | . . . . . . . . . . . . . . . . . . Installed . | . . . . . . . . . . . . . . . . . . Triggered 3 | . . 1 . . . . . 1 . . . . 1 . . . . Machines | -11 -10 -10 -9 -9 -9 -8 -8 -7 -7 -7 -7 -6 -6 -6 -6 -6 -5 ---------- Run | Yrd Mat Min Mat Min Exi Min Mat Fac Low Low Dat Pro Fac Ext Cet Arc Fac Machines Disabled 13 | . 1 . . 1 . 5 3 . . . . . . 2 . . 1 Max in Single Turn 1 | . 1 . . 1 . 1 1 . . . . . . . . . 1 Garrison Access 3 | . . . . . . . 1 1 . . . . 1 . . . . Machines Repaired . | . . . . . . . . . . . . . . . . . . Machines Dismantled . | . . . . . . . . . . . . . . . . . . Machines Sabotaged . | . . . . . . . . . . . . . . . . . . Overloaded Fab Kills . | . . . . . . . . . . . . . . . . . . Hacking | -11 -10 -10 -9 -9 -9 -8 -8 -7 -7 -7 -7 -6 -6 -6 -6 -6 -5 --------- Run | Yrd Mat Min Mat Min Exi Min Mat Fac Low Low Dat Pro Fac Ext Cet Arc Fac Machines Accessed 71 | . 5 . 3 . 4 . 11 16 . 1 4 . 14 5 3 . 5 Terminals 32 | . 4 . 1 . . . 6 7 . . . . 7 3 3 . 1 Fabricators 6 | . . . . . . . . 3 . . . . 2 . . . 1 Repair Stations 4 | . . . . . . . 1 1 . . . . 1 . . . 1 Recycling Units 11 | . 1 . 1 . . . 2 2 . . . . 2 2 . . 1 Scanalyzers 6 | . . . 1 . . . 1 2 . . . . 1 . . . 1 Garrison Access 3 | . . . . . . . 1 1 . . . . 1 . . . . Total Hacks 306 | . 10 . 9 . 49 . 32 82 . 1 29 . 48 13 11 . 22 Successful 227 | . 6 . 4 . 49 . 15 62 . 1 29 . 30 8 5 . 18 Failed 78 | . 4 . 5 . . . 17 20 . . . . 17 5 6 . 4 Catastrophic 14 | . 3 . 1 . . . 5 4 . . . . 1 . . . . Database Lockouts 1 | . . . . . . . . . . . . . 1 . . . . Manual 107 | . 10 . . . . . 12 45 . . . . 30 3 1 . 6 Terminals 124 | . 7 . 2 . . . 15 45 . . . . 32 7 11 . 5 Fabricators 16 | . . . . . . . . 9 . . . . 5 . . . 2 Repair Stations 14 | . . . . . . . 6 2 . . . . 2 . . . 4 Recycling Units 33 | . 3 . 2 . . . 6 9 . . . . 4 6 . . 3 Scanalyzers 36 | . . . 5 . . . 4 16 . . . . 3 . . . 8 Garrison Access 4 | . . . . . . . 1 1 . . . . 2 . . . . Terminal Hacks 119 | . 1 . . . 49 . 3 19 . 1 29 . 9 2 5 . 1 Record 65 | . . . . . 49 . . . . 1 11 . . . 4 . . Part Schematic 14 | . . . . . . . . 2 . . 11 . 1 . . . . Robot Schematic 5 | . . . . . . . . 1 . . 4 . . . . . . Robot Analysis 2 | . . . . . . . . 2 . . . . . . . . . Prototype ID Bank 5 | . . . . . . . . 1 . . 3 . 1 . . . . Open Door 2 | . . . . . . . . . . . . . . 1 1 . . Level Access Points 2 | . . . . . . . . 1 . . . . 1 . . . . Branch Access Points 4 | . . . . . . . 1 1 . . . . 1 1 . . . Terminal Index 1 | . . . . . . . . 1 . . . . . . . . . Fabricator Index 1 | . . . . . . . . 1 . . . . . . . . . Repair Station Index 1 | . . . . . . . . 1 . . . . . . . . . Alert Level 2 | . . . . . . . . 1 . . . . 1 . . . . Locate Traps 3 | . . . . . . . 1 2 . . . . . . . . . Recall Investigation 3 | . . . . . . . . 1 . . . . 2 . . . . Hauler Manifests 1 | . . . . . . . 1 . . . . . . . . . . Registered Components 4 | . 1 . . . . . . 1 . . . . 1 . . . 1 Registered Prototypes 1 | . . . . . . . . 1 . . . . . . . . . Zone Layout 3 | . . . . . . . . 2 . . . . 1 . . . . Fabricator Hacks 12 | . . . . . . . . 6 . . . . 4 . . . 2 Load Schematic 6 | . . . . . . . . 3 . . . . 2 . . . 1 Build 6 | . . . . . . . . 3 . . . . 2 . . . 1 Repair Station Hacks 11 | . . . . . . . 4 2 . . . . 2 . . . 3 Scan Component 6 | . . . . . . . 2 1 . . . . 1 . . . 2 Repair 5 | . . . . . . . 2 1 . . . . 1 . . . 1 Recycling Unit Hacks 12 | . 1 . . . . . 1 4 . . . . 2 3 . . 1 Report Inventory 6 | . . . . . . . . 2 . . . . 1 2 . . 1 Retrieve Components 6 | . 1 . . . . . 1 2 . . . . 1 1 . . . Scanalyzer 30 | . . . 4 . . . 3 14 . . . . 2 . . . 7 Insert Component 15 | . . . 2 . . . 2 7 . . . . 1 . . . 3 Analyze 15 | . . . 2 . . . 1 7 . . . . 1 . . . 4 Garrison Access Hacks 3 | . . . . . . . 1 1 . . . . 1 . . . . Seal Access 3 | . . . . . . . 1 1 . . . . 1 . . . . Unauthorized Hacks 39 | . 3 . . . . . 3 16 . . . . 10 3 . . 4 Terminals 27 | . 2 . . . . . 3 11 . . . . 9 . . . 2 Track 4 | . . . . . . . 1 2 . . . . 1 . . . . Assimilate 3 | . . . . . . . . 2 . . . . 1 . . . . Botnet 8 | . 1 . . . . . 1 3 . . . . 2 . . . 1 Operators 4 | . . . . . . . 1 1 . . . . 1 . . . 1 Skim 8 | . 1 . . . . . . 3 . . . . 4 . . . . Fabricators . | . . . . . . . . . . . . . . . . . . Repair Stations . | . . . . . . . . . . . . . . . . . . Recycling Units 11 | . 1 . . . . . . 4 . . . . 1 3 . . 2 Monitor 4 | . . . . . . . . 1 . . . . 1 1 . . 1 Reject 1 | . . . . . . . . 1 . . . . . . . . . Recyclers 3 | . . . . . . . . 1 . . . . . 1 . . 1 Mask 3 | . 1 . . . . . . 1 . . . . . 1 . . . Scanalyzers 1 | . . . . . . . . 1 . . . . . . . . . Researchers 1 | . . . . . . . . 1 . . . . . . . . . Garrison Access . | . . . . . . . . . . . . . . . . . . Data Cores Recovered . | . . . . . . . . . . . . . . . . . . Used . | . . . . . . . . . . . . . . . . . . Hacking Detections 51 | . 5 . 3 . . . 10 13 . . . . 12 4 1 . 3 Full Trace Events 8 | . . . 1 . . . 1 3 . . . . 2 . . . 1 Feedback Events . | . . . . . . . . . . . . . . . . . . Feedback Blocked . | . . . . . . . . . . . . . . . . . . Robot Schematics Acquired 5 | . . . . . . . . 1 . . 4 . . . . . . Robots Built . | . . . . . . . . . . . . . . . . . . Authchips . | . . . . . . . . . . . . . . . . . . Time . | . . . . . . . . . . . . . . . . . . Total Robot Build Rating . | . . . . . . . . . . . . . . . . . . Part Schematics Acquired 28 | . . . 2 . . . 1 9 . . 11 . 2 . . . 3 Parts Built 6 | . . . . . . . . 3 . . . . 2 . . . 1 Authchips . | . . . . . . . . . . . . . . . . . . Time 308 | . . . . . . . . 129 . . . . 103 . . . 76 Total Part Build Rating 24 | . . . . . . . . 8 . . . . 11 . . . 5 Parts Repaired 5 | . . . . . . . 2 1 . . . . 1 . . . 1 Time 143 | . . . . . . . 76 30 . . . . 12 . . . 25 Parts Recycled . | . . . . . . . . . . . . . . . . . . Recycled Matter . | . . . . . . . . . . . . . . . . . . Retrieved Matter . | . . . . . . . . . . . . . . . . . . Retrieved Components 26 | . 1 . . . . . 9 13 . . . . . 3 . . . Parts Scanalyzed 14 | . . . 2 . . . 1 7 . . . . 1 . . . 3 Part Schematics Acquired 14 | . . . 2 . . . 1 7 . . . . 1 . . . 3 Parts Damaged 1 | . . . . . . . . . . . . . . . . . 1 Bothacking | -11 -10 -10 -9 -9 -9 -8 -8 -7 -7 -7 -7 -6 -6 -6 -6 -6 -5 ------------ Run | Yrd Mat Min Mat Min Exi Min Mat Fac Low Low Dat Pro Fac Ext Cet Arc Fac Used RIF Installer . | . . . . . . . . . . . . . . . . . . Robots Hacked 5 | . . . . . . . . 3 1 . . . 1 . . . . Non-combat 5 | . . . . . . . . 3 1 . . . 1 . . . . Combat . | . . . . . . . . . . . . . . . . . . Robot Hacks Applied 6 | . . . . . . . . 3 1 . . . 2 . . . . parse_system 2 | . . . . . . . . 1 1 . . . . . . . . find_chute 4 | . . . . . . . . 2 . . . . 2 . . . . Relay Couplers Released 1 | . . . . . . . 1 . . . . . . . . . . Machine Destruction 1 | . . . . . . . 1 . . . . . . . . . . Fabnet Peak Effective % . | . . . . . . . . . . . . . . . . . . Robots Rewired 3 | . . . . . . . . . . . . . . 3 . . . Allies Hacked . | . . . . . . . . . . . . . . . . . . Hacks Repelled . | . . . . . . . . . . . . . . . . . . Allies | -11 -10 -10 -9 -9 -9 -8 -8 -7 -7 -7 -7 -6 -6 -6 -6 -6 -5 -------- Run | Yrd Mat Min Mat Min Exi Min Mat Fac Low Low Dat Pro Fac Ext Cet Arc Fac Total Allies 11 | . . . . 3 . . . 2 . . . . 1 5 . . . Largest Group 5 | . . . . 3 3 3 . 2 1 1 1 1 1 5 2 1 . Highest-Rated Group 156 | . . . . 40 40 40 . 52 26 26 26 26 26 156 55 34 . Highest-Rated Ally 39 | . . . . 16 16 16 . 26 26 26 26 26 26 39 39 34 . Total Orders 18 | . . . . . . . . 2 . 8 . 4 2 . 2 . . STAY 9 | . . . . . . . . 1 . 4 . 2 1 . 1 . . FOLLOW 9 | . . . . . . . . 1 . 4 . 2 1 . 1 . . Ally Attacks 79 | . . . . . . 16 . . . . . . . 57 6 . . Total Damage 1325 | . . . . . . 202 . . . . . . . 1015 108 . . Kills 8 | . . . . . . 2 . . . . . . . 6 . . . Allies Corrupted . | . . . . . . . . . . . . . . . . . . Allies Melted 1 | . . . . . . . . . . . . . . 1 . . . Intel | -11 -10 -10 -9 -9 -9 -8 -8 -7 -7 -7 -7 -6 -6 -6 -6 -6 -5 ------- Run | Yrd Mat Min Mat Min Exi Min Mat Fac Low Low Dat Pro Fac Ext Cet Arc Fac Robot Analysis Total 2 | . . . . . . . . 2 . . . . . . . . . Derelict Logs Recovered 7 | . . 1 . 2 . . . . 1 2 . 1 . . . . . Drone Launches . | . . . . . . . . . . . . . . . . . . Drone Recoveries . | . . . . . . . . . . . . . . . . . . Exploration | -11 -10 -10 -9 -9 -9 -8 -8 -7 -7 -7 -7 -6 -6 -6 -6 -6 -5 ------------- Run | Yrd Mat Min Mat Min Exi Min Mat Fac Low Low Dat Pro Fac Ext Cet Arc Fac Turns Passed 11510 | 91 730 576 625 675 436 802 2452 1086 438 822 28 883 662 756 153 13 282 Spaces Moved 11911 | 56 483 249 293 543 438 703 1283 2050 621 1353 77 610 1353 1051 238 36 474 Core 144 | 2 2 . . . . . . . . . . . . . . . 140 Treads 138 | . . . 14 2 . 2 120 . . . . . . . . . . Legs . | . . . . . . . . . . . . . . . . . . Wheels 3906 | 54 481 249 279 541 438 701 1163 . . . . . . . . . . Hover . | . . . . . . . . . . . . . . . . . . Flight 7723 | . . . . . . . . 2050 621 1353 77 610 1353 1051 238 36 334 Fastest Speed 26 | 50 80 80 80 95 95 95 95 27 27 27 27 27 26 26 27 32 32 Average Speed 51 | 79 81 80 88 95 95 95 111 27 27 27 27 27 26 27 31 32 37 Slowest Speed 250 | 100 250 85 160 160 95 160 240 30 27 27 27 27 27 29 32 32 50 Overloaded Moves . | . . . . . . . . . . . . . . . . . . Propulsion Burnouts . | . . . . . . . . . . . . . . . . . . Robots Hopped 8 | . . . . . . . . 1 . . . . 5 . . 1 1 Cave-ins Triggered . | . . . . . . . . . . . . . . . . . . Exploration Rate (%) 60 | 3 74 37 27 99 91 100 72 31 75 96 69 61 30 68 81 56 15 Regions Visited 17 Branch Regions 11 Pre-discovered Areas 2 | . . . . . 1 . . . . . 1 . . . . . . Known Exits Taken 10 | . . . . . . . 1 1 1 1 1 1 1 1 1 1 . Unknown Exits Taken 7 | 1 1 1 1 1 1 1 . . . . . . . . . . . Scrap Searched 12 | . . 1 . 1 . 1 . . 2 5 . 2 . . . . . Spaces Dug 96 | . . . . 1 . . . 28 2 4 . 51 8 2 . . . Terrain Destroyed 252 | . 2 . . 1 . . 2 45 2 4 . 72 18 8 98 . . Melee 56 | . . . . . . . . 28 2 4 . 12 8 2 . . . Projectile 3 | . . . . 1 . . 2 . . . . . . . . . . AOE 193 | . 2 . . . . . . 17 . . . 60 10 6 98 . . Terrain Rammed . | . . . . . . . . . . . . . . . . . . Walls Destroyed . | . . . . . . . . . . . . . . . . . . Machines Disabled . | . . . . . . . . . . . . . . . . . . Actions | -11 -10 -10 -9 -9 -9 -8 -8 -7 -7 -7 -7 -6 -6 -6 -6 -6 -5 --------- Run | Yrd Mat Min Mat Min Exi Min Mat Fac Low Low Dat Pro Fac Ext Cet Arc Fac Total 16336 | 78 714 569 571 637 458 766 1974 2522 882 1775 83 1306 1619 1477 299 35 571 Wait 3228 | . 106 270 158 37 10 10 324 357 254 395 7 674 181 316 47 1 81 Move 11878 | 55 482 248 292 542 437 702 1282 2047 620 1352 76 609 1342 1050 237 33 472 Hop 8 | . . . . . . . . 1 . . . . 5 . . 1 1 Pick Up 111 | 6 12 2 17 6 2 2 41 15 . . . . 4 3 . . 1 Fast Attach 84 | 7 15 2 2 1 2 3 18 6 . 1 . . 13 10 1 . 3 Attach 56 | . 3 3 4 2 . . 28 10 . . . . 2 1 1 . 2 Detach 36 | . 2 1 1 2 . . 18 6 . . . . 2 1 1 . 2 Swap 194 | . 20 13 38 10 1 10 56 13 3 6 . 4 8 8 4 . . Drop 150 | . 20 4 18 6 5 6 43 20 . 1 . . 15 10 . . 2 Fire 391 | 10 53 26 41 31 1 33 162 4 . . . 6 1 15 4 . 4 Melee 127 | . . . . . . . . 41 5 20 . 13 25 17 4 . 2 Ram 2 | . 1 . . . . . . . . . . . . . . . 1 Kick . | . . . . . . . . . . . . . . . . . . Crush 2 | . . . . . . . 2 . . . . . . . . . . Escape Stasis 46 | . . . . . . . . . . . . . . 46 . . . Rewire . | . . . . . . . . . . . . . . . . . . Trap 23 | . . . . . . . . 2 . . . . 21 . . . . Miscellaneous . | . . . . . . . . . . . . . . . . . . Route ------- -11/Scrapyard -10/Materials (discovered 4 exits: *Mat x2 / [*Min x2]) -10/Mines -9/Materials (discovered 3 exits: [*Min] / *Sto x2) -9/Mines (discovered 3 exits: *Mat x2 / *Exi) -9/Exiles -8/Mines (discovered 2 exits: *Mat x2) -8/Materials (discovered 2 exits: *Fac x2) -7/Factory (discovered 6 exits: Fac x4 / *Low x2) -7/Lower Caves (discovered 2 exits: *Low / *Zio) -7/Lower Caves (discovered 2 exits: *Fac / *Dat) -7/Data Miner -6/Proximity Caves -6/Factory (discovered 8 exits: Fac x4 / Low x2 / *Ext x2) -6/Extension (discovered 3 exits: *Fac x2 / *Cet) -6/Cetus -6/Archives -5/Factory History --------- Turn | Location | Event 11 | -11/Scrapyard | Discovered new exit (range 15) 92 | -11/Scrapyard | Entered Materials 141 | -10/Materials | Discovered new exit (range 16) 312 | -10/Materials | Discovered new exit (range 13) 330 | -10/Materials | Build established: Mutant 555 | -10/Materials | Discovered new exit (range 6) 624 | -10/Materials | Discovered new exit (range 7) 822 | -10/Materials | Entered Mines 915 | -10/Mines | Learned location of 1 exit from Materials 920 | -10/Mines | Found a damaged Exp. Sensor Array with a note attached 923 | -10/Mines | Found Prototype Device 923 | -10/Mines | Identified Exp. Sensor Array 1174 | -10/Mines | Build established: Scavenger-Mutant 1204 | -10/Mines | Assembled infested the area 1287 | -10/Mines | Discovered new exit (range 13) 1354 | -10/Mines | Core integrity fell below 50% 1368 | -10/Mines | System corruption reached 10% 1398 | -10/Mines | Entered Materials 1398 | -9/Materials | Evolved 2 slots: Utility x2 1399 | -9/Materials | Identified exit to Storage 1405 | -9/Materials | Lost 3 parts (1p1u1w) 1441 | -9/Materials | Discovered exit to Storage (range 12) 1762 | -9/Materials | Discovered new exit (range 15) 2023 | -9/Materials | Entered Mines 2045 | -9/Mines | Met a Derelict bent on vengeance 2045 | -9/Mines | Learned Materials non-interactive machine intel 2265 | -9/Mines | Discovered new exit (range 13) 2634 | -9/Mines | Discovered new exit (range 16) 2645 | -9/Mines | Assisted by bots powering up and referring to "LRC-V3" 2681 | -9/Mines | Deemed a non-threat by the Exiles lab entrance 2681 | -9/Mines | Discovered new exit (range 5) 2698 | -9/Mines | Entered Exiles 2698 | -9/Exiles | Accompanied by 3 allies 2722 | -9/Exiles | Met 8R-AWN 2737 | -9/Exiles | Met EX-HEX 2766 | -9/Exiles | Met EX-BIN 2904 | -9/Exiles | Met EX-DEC 2920 | -9/Exiles | Visited The Gauntlet 3045 | -9/Exiles | Learned location of Zion (-6) 3116 | -9/Exiles | Discovered new exit (range 14) 3134 | -9/Exiles | Entered Mines 3134 | -8/Mines | Accompanied by 3 allies 3135 | -8/Mines | Discovered new exit (range 15) 3263 | -8/Mines | Discovered new exit (range 9) 3728 | -8/Mines | Lost 3 allies 3936 | -8/Mines | Entered Materials 3936 | -8/Materials | Evolved 2 slots: Propulsion x1, Utility x1 3937 | -8/Materials | Identified exit to Factory 3938 | -8/Materials | Loaded intel: 30 non-interactive machine locations 4125 | -8/Materials | Lost 8 parts (2p3n2u1w) 4446 | -8/Materials | Core integrity fell below 50% 4675 | -8/Materials | Repaired Hvy. Armor Plating 4683 | -8/Materials | Discovered exit to Factory (range 16) 5733 | -8/Materials | Build established: Scavenger-Skirmisher 5762 | -8/Materials | Repaired Hvy. Armor Plating 6315 | -8/Materials | Build established: Scavenger-Mutant 6388 | -8/Materials | Entered Factory 6388 | -7/Factory | Evolved 2 slots: Propulsion x1, Utility x1 6607 | -7/Factory | Noticed a derelict Sapper rigging charges 6676 | -7/Factory | Build established: Hacker-Sprinter 6853 | -7/Factory | Fabricated Mni. Grenade Launcher? 6865 | -7/Factory | Identified exit to Factory 7086 | -7/Factory | Discovered new exit (range 15) 7133 | -7/Factory | Repaired Imp. VTOL Module? 7150 | -7/Factory | Fabricated Hacking Suite? 7171 | -7/Factory | Fabricated Hacking Suite? 7414 | -7/Factory | Identified exit to Lower Caves 7474 | -7/Factory | Entered Lower Caves 7474 | -7/Lower Caves | Accompanied by 1 ally 7756 | -7/Lower Caves | Encountered a Warlord checkpoint 7785 | -7/Lower Caves | Spotted B-75 Beast 7828 | -7/Lower Caves | Identified exit to Lower Caves 7831 | -7/Lower Caves | A Derelict revealed a hidden shortcut to a safe place 7834 | -7/Lower Caves | Identified exit to Zion 7912 | -7/Lower Caves | Entered another Lower Caves area 7912 | -7/Lower Caves | Accompanied by 1 ally 7920 | -7/Lower Caves | Discovered exit to Factory (range 14) 8155 | -7/Lower Caves | Ambushed by wild Derelicts 8234 | -7/Lower Caves | Learned Factory machine intel 8236 | -7/Lower Caves | Learned Factory trap positions 8726 | -7/Lower Caves | Discovered new exit (range 5) 8727 | -7/Lower Caves | Identified exit to Data Miner 8734 | -7/Lower Caves | Entered Data Miner 8734 | -7/Data Miner | Accompanied by 1 ally 8734 | -7/Data Miner | Discovered new exit (range 6) 8736 | -7/Data Miner | Identified exit to Proximity Caves 8740 | -7/Data Miner | Met Data Miner 8744 | -7/Data Miner | Learned location of Section 7 (-2) 8744 | -7/Data Miner | Acquired the access code to Warlord's prototype stash 8749 | -7/Data Miner | Received God Mode back door access code from Data Miner 8762 | -7/Data Miner | Entered Proximity Caves 8762 | -6/Proximity Caves | Accompanied by 1 ally 9598 | -6/Proximity Caves | Discovered exit to Factory (range 11) 9645 | -6/Proximity Caves | Entered Factory 9645 | -6/Factory | Accompanied by 1 ally 9645 | -6/Factory | Evolved 2 slots: Utility x1, Weapon x1 9646 | -6/Factory | Loaded intel: 98 trap records 9647 | -6/Factory | Loaded intel: 255 machine locations 9686 | -6/Factory | Central database locked down 9806 | -6/Factory | Fabricated Adv. Hacking Suite (x1) 9939 | -6/Factory | Found Prototype Launcher 9939 | -6/Factory | Identified Scatter Rocket Array 9989 | -6/Factory | Repaired Imp. Light Armor Plating 10097 | -6/Factory | Fabricated Cld. Cesium-ion Thruster? 10148 | -6/Factory | Identified exit to Lower Caves 10148 | -6/Factory | Identified exit to Extension 10234 | -6/Factory | Identified exit to Factory 10307 | -6/Factory | Entered Extension 10356 | -6/Extension | Identified exit to Cetus 10394 | -6/Extension | Spotted B-75 Beast 10509 | -6/Extension | Rescued a captive Derelict 10510 | -6/Extension | Rescued a captive Derelict 10632 | -6/Extension | Disrupted transfer network 10667 | -6/Extension | Warlord forces began an assault 10764 | -6/Extension | Spotted B-75 Beast 10792 | -6/Extension | Lost 4 allies 10801 | -6/Extension | Discovered exit to Factory (range 3) 10895 | -6/Extension | Discovered exit to Factory (range 15) 11063 | -6/Extension | Entered Cetus 11063 | -6/Cetus | Accompanied by 2 allies 11069 | -6/Cetus | Spotted Cetus Guard 11069 | -6/Cetus | Spotted Cetus Guard 11076 | -6/Cetus | Spotted Cetus Guard 11079 | -6/Cetus | Spotted Cetus Guard 11086 | -6/Cetus | Destroyed Cetus Guard 11086 | -6/Cetus | Destroyed Cetus Guard 11101 | -6/Cetus | Destroyed Cetus Guard 11106 | -6/Cetus | Destroyed Cetus Guard 11132 | -6/Cetus | Lost 4 parts (2n1u1w) 11182 | -6/Cetus | Discovered new exit (range 16) 11187 | -6/Cetus | Identified exit to Archives 11209 | -6/Cetus | Spotted Cetus Guard 11216 | -6/Cetus | Entered Archives 11216 | -6/Archives | Accompanied by 1 ally 11224 | -6/Archives | Unable to access archive contents 11225 | -6/Archives | Discovered exit to Factory (range 13) 11229 | -6/Archives | Entered Factory 11229 | -5/Factory | Evolved 2 slots: Power x1, Utility x1 11272 | -5/Factory | Repaired Adv. Sensor Array 11420 | -5/Factory | Spotted B-75 Beast 11457 | -5/Factory | Fabricated Cld. Cesium-ion Thruster? 11474 | -5/Factory | Core integrity fell below 50% 11491 | -5/Factory | Lost 5 parts (2n3u) 11491 | -5/Factory | Core integrity fell below 20% 11511 | -5/Factory | Destroyed by G-50 Soldier with Heavy Laser Last Messages --------------- 11460_ Slug penetrates Wall. 11460_ M-28 Smith repairs Imp. Surge Thruster. 11469_ ALERT: Hostiles spotted, dispatching reinforcements to Terminal F007. 11471_ ALERT: Suspicious intruders detected, dispatching Cutter reinforcements to area. 11473_ O-16 Technician sends out distress signal. 11473_ O-16 Technician: "IFF HANDSHAKE FAILED. SECURING TERMINAL." 11476_ Knocked back. 11478_ Adv. Hacking Suite severed. 11484_ ALERT: Hostiles spotted, dispatching reinforcements to Terminal F016. 11486_ Hacking Suite severed. 11492_ Triggered Blade Trap. 11492_ Massive razor-sharp blades shoot up from within the floor. 11492_ System Shield severed. 11505_ T-07 Excavator is excavating. Map ----- +----------------------------------------------------+ | ?????????????????????????????????????????????????? | | ?????????????????????????????????????????????????? | | ?????????????????????????????????????????????????? | | ?????????????????????????????????????????????????? | | ?????????????????????????????????????????????????? | | ?????????????????????????????????????????????????? | | ?????????????????????????????????????????????????? | | ?????????????????????????????????????????????????? | | ?????????????????????????????????????????????????? | | ??????]??????????????????????????????????????????? | | ??????????????????????? ?????????????????????? | | ????????????????????? ????????????????????? | | ????????????????????# ????????????????????? | | ????????????????????# ????????????????????? | | ????????????????????# ????????????????????? | | ????????????????????# #????????????????????? | | ????????????????????# #????????????????????? | | ????????????????????# #????????????????????? | | ????????????????????# #????????????????????? | | ????????????????????# ###??????????????????? | | ??????????????????### # #??????????????????? | | ???????????????????A t#???????????????????? | | ?????????########???# #????????????????????? | | ?????????# ???#gg #????????????????????? | | ?????????# ??# #????????????????????? | | ?????????# ! ??# @ #????????????????????? | | ?????????? ?# #????????????????#???? | | ??????????? ?# #??????????????? #???? | | ????????????"""" # #????????????!? #???? | | ????????????"""" #c #?????????????? #???? | | ????????????"""" c #????????????? #???? | | ????????????"""" # #???????????? ????? | | ????????????"""" # #??????????? ??????? | | ????????????"""" ?# #????#######+######### | | ????????????"""" ?# #????# | | ???????????? ??# #????# | | ???????????? ??# #????# "" "" "" | | ??????????? ???# #????# "" "" "" | | ??????????#######???# #????# """ """ """ | | ????????????????????# #????# """ """ """ | | ????????????????????# #????# """ """ """ | | ????????????????????# #????#% | | ????????????????????# #????# ! | | ????????????????????# #????###/#####+####### | | ????????????????????# #??????# #??? | | ????????????????????# #??????# #??? | | ????????????????????# #??????# #??? | | ????????????????????# #??????# #??? | | ????????????????????# #??????# ^ #??? | | ????????????????????# ######## #??? | +----------------------------------------------------+ Best States ------------- Heat Dissipation 64 Energy Generation 25 Energy Capacity 250 Matter Stores 300 Matter Capacity 300 Sight Range 16 Robot Scan Range 16 Terrain Scan Range 16 Terrain Scan Density 85 Armor Coverage 600 Evasion (%) 64 Recoil Reduction 3 Offensive Hacking 44 Defensive Hacking 20 Authchip Count 1 Item Schematics ----------------- Sml. Storage Unit | -9/Materials | Scanalyzed System Shield | -9/Materials | Scanalyzed Imp. VTOL Module | -8/Materials | Scanalyzed Hvy. Deuterium Engine | -7/Factory | Scanalyzed Imp. Light Armor Plating | -7/Factory | Scanalyzed Imp. Flight Unit | -7/Factory | Scanalyzed Mni. Grenade Launcher | -7/Factory | Hacked Hacking Suite | -7/Factory | Hacked Mic. Nuclear Core | -7/Factory | Scanalyzed Imp. Sensor Array | -7/Factory | Scanalyzed Katana | -7/Factory | Scanalyzed Imp. Cesium-ion Thruster | -7/Factory | Scanalyzed Combat Drone Bay | -7/Data Miner | Free Lgt. Regenerative Plating | -7/Data Miner | Free Cld. Cesium-ion Thruster | -7/Data Miner | Free Gravity Neutralizer | -7/Data Miner | Free Force Rifle | -7/Data Miner | Free Linear Gravjet | -7/Data Miner | Free Imp. Kinecellerator | -7/Data Miner | Free Hyp. Coil Gun | -7/Data Miner | Free Thermal Shield | -7/Data Miner | Free Adv. Plasma Cannon | -7/Data Miner | Free Centrium Wheel | -7/Data Miner | Free Adv. Hacking Suite | -6/Factory | Hacked Biomechanical Wings | -6/Factory | Scanalyzed Power Sword | -5/Factory | Scanalyzed Scatter Rocket Array | -5/Factory | Scanalyzed Centrium Medium Armor Plating | -5/Factory | Scanalyzed Robot Schematics ------------------ B-36 Bruiser | -7/Factory | Hacked C-17 Slicer | -7/Data Miner | Free B-48 Gladiator | -7/Data Miner | Free E-15 Imp | -7/Data Miner | Free W-25 Informer | -7/Data Miner | Free Fabricated ------------ Mni. Grenade Launcher | x1 | -7/Factory Hacking Suite | x1 | -7/Factory Hacking Suite | x1 | -7/Factory Adv. Hacking Suite | x1 | -6/Factory Cld. Cesium-ion Thruster | x1 | -6/Factory Cld. Cesium-ion Thruster | x1 | -5/Factory Alien Tech Used ----------------- None Achievements -------------- Hehehe Challenges ------------ None Game ------ Seed StealthMicrowarpShotgun Manual? 0 Play Time 05:47:47 Cumulative 76.1 hours Start 2025.03.16 @ 11:56:18 End 2025.03.17 @ 16:33:01 Sessions 15 Manual Loads 0 Difficulty Rogue Special Mode None Game No. 22 Rogue 22 Adventurer 0 Explorer 0 Win Type - Total 2 Types 1/0/0/1/0/0/0/0/0 Lore% 24 Gallery% 53 Achievement% 43 Wizard Run 0 Options --------- Layout 2 ASCII 0 Keyboard 0 Movement Mouse Keybinds 0 Fullscreen 2 Font 24/Smallcaps Map View 50x44 Zoom Use 0% Tactical HUD 1 Map Filters NONE Filters BRIGHTNESS(130) Steam 0 RUN: d5fe68c4-9b45-43c5-b415-078dd1fb6a52